Workbook

Sheet Gegevens van scanner
A5: =SUM(B:B)&" Gegevens van scanner" -> 87 Gegevens van scanner | F5: =IF(SUM(B:B)=GETPIVOTDATA("Quantity",$F$6),"FILTER COMPLEET","VERNIEUWEN!!") -> VERNIEUWEN!!
A6: BAR code | B6: Quantity | C6: Unit price | D6: Serial number | F6: Rijlabels | G6: Som van Quantity | I6: SYSTEEM NUMMER | J6: Aantal | K6: ONDERDEEL NAAM UIT DATABASE
A7: 10000008 | B7: 7 | F7: (leeg) | I7: =IF(F7>0,IF(F7="(leeg)","",IF(F7="Eindtotaal","",F7)),"") ->  | J7: =IF(ISNA(VLOOKUP(I7,$F:$G,2,FALSE)),"",VLOOKUP(I7,$F:$G,2,FALSE)) -> 
A8: 10000009 | B8: 3 | F8: 10000020 | G8: 4 | I8: =IF(F8>0,IF(F8="(leeg)","",IF(F8="Eindtotaal","",F8)),"") -> 10000020 | J8: 4
A9: 10000010 | B9: 1 | F9: 10000008 | G9: 7 | I9: 10000008 | J9: 7
A10: 10000010 | B10: 3 | F10: 10000009 | G10: 3 | I10: 10000009 | J10: 3
A11: 10000012 | B11: 1 | F11: 10000010 | G11: 9 | I11: 10000010 | J11: 9
A12: 10000013 | B12: 2 | F12: 10000012 | G12: 1 | I12: 10000012 | J12: 1
A13: 10000013 | B13: 4 | F13: 10000013 | G13: 7 | I13: 10000013 | J13: 7
A14: 10000015 | B14: 2 | F14: 10000015 | G14: 2 | I14: 10000015 | J14: 2
A15: 10000016 | B15: 1 | F15: 10000016 | G15: 14 | I15: 10000016 | J15: 14
A16: 10000016 | B16: 3 | F16: 10000018 | G16: 2 | I16: 10000018 | J16: 2
A17: 10000018 | B17: 2 | F17: 10000019 | G17: 3 | I17: 10000019 | J17: 3
A18: 10000019 | B18: 3 | F18: 10000021 | G18: 11 | I18: 10000021 | J18: 11
A19: 10000020 | B19: 4 | F19: 10000023 | G19: 7 | I19: 10000023 | J19: 7
A20: 10000021 | B20: 2 | F20: 10000024 | G20: 8 | I20: 10000024 | J20: 8
A21: 10000021 | B21: 4 | F21: 10000025 | G21: 9 | I21: 10000025 | J21: 9
A22: 10000023 | B22: 7 | F22: 10000026 | G22: 10 | I22: 10000026 | J22: 10
A23: 10000024 | B23: 8 | F23: 10000027 | G23: 11 | I23: 10000027 | J23: 11
A24: 10000025 | B24: 9 | F24: Eindtotaal | G24: 108
A25: 10000026 | B25: 10
A26: 10000027 | B26: 11
J71: =IF(ISNA(VLOOKUP(I71,$F:$G,2,FALSE)),"",VLOOKUP(I71,$F:$G,2,FALSE)) -> 
I72: =IF(F72>0,IF(F72="(leeg)","",IF(F72="Eindtotaal","",F72)),"") -> 
J135: =IF(ISNA(VLOOKUP(I135,$F:$G,2,FALSE)),"",VLOOKUP(I135,$F:$G,2,FALSE)) -> 
I136: =IF(F136>0,IF(F136="(leeg)","",IF(F136="Eindtotaal","",F136)),"") -> 
J199: =IF(ISNA(VLOOKUP(I199,$F:$G,2,FALSE)),"",VLOOKUP(I199,$F:$G,2,FALSE)) -> 
I200: =IF(F200>0,IF(F200="(leeg)","",IF(F200="Eindtotaal","",F200)),"") -> 
J263: =IF(ISNA(VLOOKUP(I263,$F:$G,2,FALSE)),"",VLOOKUP(I263,$F:$G,2,FALSE)) -> 
I264: =IF(F264>0,IF(F264="(leeg)","",IF(F264="Eindtotaal","",F264)),"") -> 
J327: =IF(ISNA(VLOOKUP(I327,$F:$G,2,FALSE)),"",VLOOKUP(I327,$F:$G,2,FALSE)) -> 
I328: =IF(F328>0,IF(F328="(leeg)","",IF(F328="Eindtotaal","",F328)),"") -> 
J391: =IF(ISNA(VLOOKUP(I391,$F:$G,2,FALSE)),"",VLOOKUP(I391,$F:$G,2,FALSE)) -> 
I392: =IF(F392>0,IF(F392="(leeg)","",IF(F392="Eindtotaal","",F392)),"") -> 
J455: =IF(ISNA(VLOOKUP(I455,$F:$G,2,FALSE)),"",VLOOKUP(I455,$F:$G,2,FALSE)) -> 
I456: =IF(F456>0,IF(F456="(leeg)","",IF(F456="Eindtotaal","",F456)),"") -> 
J519: =IF(ISNA(VLOOKUP(I519,$F:$G,2,FALSE)),"",VLOOKUP(I519,$F:$G,2,FALSE)) -> 
I520: =IF(F520>0,IF(F520="(leeg)","",IF(F520="Eindtotaal","",F520)),"") -> 
J583: =IF(ISNA(VLOOKUP(I583,$F:$G,2,FALSE)),"",VLOOKUP(I583,$F:$G,2,FALSE)) -> 
I584: =IF(F584>0,IF(F584="(leeg)","",IF(F584="Eindtotaal","",F584)),"") -> 
J647: =IF(ISNA(VLOOKUP(I647,$F:$G,2,FALSE)),"",VLOOKUP(I647,$F:$G,2,FALSE)) -> 
I648: =IF(F648>0,IF(F648="(leeg)","",IF(F648="Eindtotaal","",F648)),"") -> 
J711: =IF(ISNA(VLOOKUP(I711,$F:$G,2,FALSE)),"",VLOOKUP(I711,$F:$G,2,FALSE)) -> 
I712: =IF(F712>0,IF(F712="(leeg)","",IF(F712="Eindtotaal","",F712)),"") -> 
J775: =IF(ISNA(VLOOKUP(I775,$F:$G,2,FALSE)),"",VLOOKUP(I775,$F:$G,2,FALSE)) -> 
I776: =IF(F776>0,IF(F776="(leeg)","",IF(F776="Eindtotaal","",F776)),"") -> 
J839: =IF(ISNA(VLOOKUP(I839,$F:$G,2,FALSE)),"",VLOOKUP(I839,$F:$G,2,FALSE)) -> 
I840: =IF(F840>0,IF(F840="(leeg)","",IF(F840="Eindtotaal","",F840)),"") -> 
J903: =IF(ISNA(VLOOKUP(I903,$F:$G,2,FALSE)),"",VLOOKUP(I903,$F:$G,2,FALSE)) -> 
I904: =IF(F904>0,IF(F904="(leeg)","",IF(F904="Eindtotaal","",F904)),"") -> 
J967: =IF(ISNA(VLOOKUP(I967,$F:$G,2,FALSE)),"",VLOOKUP(I967,$F:$G,2,FALSE)) -> 
I968: =IF(F968>0,IF(F968="(leeg)","",IF(F968="Eindtotaal","",F968)),"") -> 

Sheet DATABASE
A9: ECOTAP NUMMER | B9: ONDERDEEL | C9: AANTAL OP VOORRAAD | D9: AFNAMEN AANTAL | E9: MINIM. AANTAL | F9: ARTIKELNUMMER LEVERANCIER | G9: LEVERANCIER
A10: 10000001 | B10: Apple iPhone 4S 8GB | C10: 20 | D10: =IFERROR(VLOOKUP(A10,'Gegevens van scanner'!$F$7:$G$250,2,0),0) -> 0 | E10: 40
A11: =A10+1 -> 10000002 | B11: Apple iPhone 4S 8GB | C11: 20 | D11: =IFERROR(VLOOKUP(A11,'Gegevens van scanner'!$F$7:$G$250,2,0),0) -> 0 | E11: 40
A12: 10000003 | B12: Apple iPhone 5C 8GB | C12: 20 | D12: =IFERROR(VLOOKUP(A12,'Gegevens van scanner'!$F$7:$G$250,2,0),0) -> 0 | E12: 40
A13: 10000004 | B13: Apple iPhone 5C 8GB | C13: 20 | D13: =IFERROR(VLOOKUP(A13,'Gegevens van scanner'!$F$7:$G$250,2,0),0) -> 0 | E13: 40
A14: 10000005 | B14: Apple iPhone 5S 16GB | C14: 20 | D14: =IFERROR(VLOOKUP(A14,'Gegevens van scanner'!$F$7:$G$250,2,0),0) -> 0 | E14: 40
A15: 10000006 | B15: Apple iPhone 5S 16GB | C15: 20 | D15: =IFERROR(VLOOKUP(A15,'Gegevens van scanner'!$F$7:$G$250,2,0),0) -> 0 | E15: 40
A16: 10000007 | B16: Apple iPhone 5S 32GB | C16: 20 | D16: =IFERROR(VLOOKUP(A16,'Gegevens van scanner'!$F$7:$G$250,2,0),0) -> 0 | E16: 40
A17: 10000008 | B17: Apple iPhone 5S 32GB | C17: 20 | D17: =IFERROR(VLOOKUP(A17,'Gegevens van scanner'!$F$7:$G$250,2,0),0) -> 7 | E17: 40
A18: 10000009 | B18: Apple iPhone 6 16GB | C18: 20 | D18: =IFERROR(VLOOKUP(A18,'Gegevens van scanner'!$F$7:$G$250,2,0),0) -> 3 | E18: 40
A19: 10000010 | B19: Apple iPhone 6 16GB | C19: 20 | D19: =IFERROR(VLOOKUP(A19,'Gegevens van scanner'!$F$7:$G$250,2,0),0) -> 9 | E19: 40
A20: 10000011 | B20: Apple iPhone 6 64GB | C20: 20 | D20: =IFERROR(VLOOKUP(A20,'Gegevens van scanner'!$F$7:$G$250,2,0),0) -> 0 | E20: 40
A21: 10000012 | B21: Apple iPhone 6 64GB | C21: 20 | D21: =IFERROR(VLOOKUP(A21,'Gegevens van scanner'!$F$7:$G$250,2,0),0) -> 1 | E21: 40
A22: 10000013 | B22: Apple iPhone 6 128GB | C22: 20 | D22: =IFERROR(VLOOKUP(A22,'Gegevens van scanner'!$F$7:$G$250,2,0),0) -> 7 | E22: 40
A23: 10000014 | B23: Apple iPhone 6 128GB | C23: 20 | D23: =IFERROR(VLOOKUP(A23,'Gegevens van scanner'!$F$7:$G$250,2,0),0) -> 0 | E23: 40
A24: 10000015 | B24: Apple iPhone 6 Plus 16GB | C24: 20 | D24: =IFERROR(VLOOKUP(A24,'Gegevens van scanner'!$F$7:$G$250,2,0),0) -> 2 | E24: 40
A25: 10000016 | B25: Apple iPhone 6 Plus 16GB | C25: 20 | D25: =IFERROR(VLOOKUP(A25,'Gegevens van scanner'!$F$7:$G$250,2,0),0) -> 14 | E25: 40
A26: 10000017 | B26: Apple iPhone 6 Plus 64GB | C26: 20 | D26: =IFERROR(VLOOKUP(A26,'Gegevens van scanner'!$F$7:$G$250,2,0),0) -> 0 | E26: 40
A27: 10000018 | B27: Apple iPhone 6 Plus 64GB | C27: 20 | D27: =IFERROR(VLOOKUP(A27,'Gegevens van scanner'!$F$7:$G$250,2,0),0) -> 2 | E27: 40
A28: 10000019 | B28: Apple iPhone 6 Plus 128GB | C28: 20 | D28: =IFERROR(VLOOKUP(A28,'Gegevens van scanner'!$F$7:$G$250,2,0),0) -> 3 | E28: 40
A29: 10000020 | B29: Apple iPhone 6 Plus 128GB | C29: 20 | D29: =IFERROR(VLOOKUP(A29,'Gegevens van scanner'!$F$7:$G$250,2,0),0) -> 4 | E29: 40
A30: 10000021 | B30: BlackBerry Classic | C30: 20 | D30: =IFERROR(VLOOKUP(A30,'Gegevens van scanner'!$F$7:$G$250,2,0),0) -> 11 | E30: 40
A31: 10000022 | B31: BlackBerry Classic | C31: 20 | D31: =IFERROR(VLOOKUP(A31,'Gegevens van scanner'!$F$7:$G$250,2,0),0) -> 0 | E31: 40
A32: 10000023 | B32: BlackBerry Leap | C32: 20 | D32: =IFERROR(VLOOKUP(A32,'Gegevens van scanner'!$F$7:$G$250,2,0),0) -> 7 | E32: 40
A33: 10000024 | B33: BlackBerry Leap | C33: 20 | D33: =IFERROR(VLOOKUP(A33,'Gegevens van scanner'!$F$7:$G$250,2,0),0) -> 8 | E33: 40
A34: 10000025 | B34: BlackBerry Passport | C34: 20 | D34: =IFERROR(VLOOKUP(A34,'Gegevens van scanner'!$F$7:$G$250,2,0),0) -> 9 | E34: 40
A35: 10000026 | B35: BlackBerry Passport | C35: 20 | D35: =IFERROR(VLOOKUP(A35,'Gegevens van scanner'!$F$7:$G$250,2,0),0) -> 10 | E35: 40
A36: 10000027 | B36: CAT B15Q | C36: 20 | D36: =IFERROR(VLOOKUP(A36,'Gegevens van scanner'!$F$7:$G$250,2,0),0) -> 11 | E36: 40
A37: 10000028 | B37: CAT B15Q | C37: 20 | D37: =IFERROR(VLOOKUP(A37,'Gegevens van scanner'!$F$7:$G$250,2,0),0) -> 0 | E37: 40
A38: 10000029 | B38: CAT S50 4G 8GB | C38: 20 | D38: =IFERROR(VLOOKUP(A38,'Gegevens van scanner'!$F$7:$G$250,2,0),0) -> 0 | E38: 40
A39: 10000030 | B39: CAT S50 4G 8GB | C39: 20 | D39: =IFERROR(VLOOKUP(A39,'Gegevens van scanner'!$F$7:$G$250,2,0),0) -> 0 | E39: 40
A40: 10000031 | B40: HTC One M8 | C40: 20 | D40: =IFERROR(VLOOKUP(A40,'Gegevens van scanner'!$F$7:$G$250,2,0),0) -> 0 | E40: 40
A41: 10000032 | B41: HTC One M8 | C41: 20 | D41: =IFERROR(VLOOKUP(A41,'Gegevens van scanner'!$F$7:$G$250,2,0),0) -> 0 | E41: 40
A42: 10000033 | B42: HTC One M9 | C42: 20 | D42: =IFERROR(VLOOKUP(A42,'Gegevens van scanner'!$F$7:$G$250,2,0),0) -> 0 | E42: 40
A43: 10000034 | B43: HTC One M9 | C43: 20 | D43: =IFERROR(VLOOKUP(A43,'Gegevens van scanner'!$F$7:$G$250,2,0),0) -> 0 | E43: 40
A44: 10000035 | B44: HTC One Mini 2 + €50 cashback | C44: 20 | D44: =IFERROR(VLOOKUP(A44,'Gegevens van scanner'!$F$7:$G$250,2,0),0) -> 0 | E44: 40
A45: 10000036 | B45: HTC One Mini 2 + €50 cashback | C45: 20 | D45: =IFERROR(VLOOKUP(A45,'Gegevens van scanner'!$F$7:$G$250,2,0),0) -> 0 | E45: 40
A46: 10000037 | B46: Huawei Ascend G7 | C46: 20 | D46: =IFERROR(VLOOKUP(A46,'Gegevens van scanner'!$F$7:$G$250,2,0),0) -> 0 | E46: 40
A47: 10000038 | B47: Huawei Ascend G7 | C47: 20 | D47: =IFERROR(VLOOKUP(A47,'Gegevens van scanner'!$F$7:$G$250,2,0),0) -> 0 | E47: 40
A48: 10000039 | B48: Huawei Ascend Mate 7 | C48: 20 | D48: =IFERROR(VLOOKUP(A48,'Gegevens van scanner'!$F$7:$G$250,2,0),0) -> 0 | E48: 40
A49: 10000040 | B49: Huawei Ascend Mate 7 | C49: 20 | D49: =IFERROR(VLOOKUP(A49,'Gegevens van scanner'!$F$7:$G$250,2,0),0) -> 0 | E49: 40
A50: 10000041 | B50: Huawei Ascend P7 + €50 cashback | C50: 20 | D50: =IFERROR(VLOOKUP(A50,'Gegevens van scanner'!$F$7:$G$250,2,0),0) -> 0 | E50: 40
A51: 10000042 | B51: Huawei Ascend P7 + €50 cashback | C51: 20 | D51: =IFERROR(VLOOKUP(A51,'Gegevens van scanner'!$F$7:$G$250,2,0),0) -> 0 | E51: 40
A52: 10000043 | B52: Huawei Ascend P8 | C52: 20 | D52: =IFERROR(VLOOKUP(A52,'Gegevens van scanner'!$F$7:$G$250,2,0),0) -> 0 | E52: 40
A53: 10000044 | B53: Huawei Ascend P8 | C53: 20 | D53: =IFERROR(VLOOKUP(A53,'Gegevens van scanner'!$F$7:$G$250,2,0),0) -> 0 | E53: 40
A54: 10000045 | B54: Huawei Ascend P8 Lite | C54: 20 | D54: =IFERROR(VLOOKUP(A54,'Gegevens van scanner'!$F$7:$G$250,2,0),0) -> 0 | E54: 40
A55: 10000046 | B55: Huawei Ascend P8 Lite | C55: 20 | D55: =IFERROR(VLOOKUP(A55,'Gegevens van scanner'!$F$7:$G$250,2,0),0) -> 0 | E55: 40
A56: 10000047 | B56: Huawei Ascend Y330 | C56: 20 | D56: =IFERROR(VLOOKUP(A56,'Gegevens van scanner'!$F$7:$G$250,2,0),0) -> 0 | E56: 40
A57: 10000048 | B57: LG G3 | C57: 20 | D57: =IFERROR(VLOOKUP(A57,'Gegevens van scanner'!$F$7:$G$250,2,0),0) -> 0 | E57: 40
A58: 10000049 | B58: LG G3 | C58: 20 | D58: =IFERROR(VLOOKUP(A58,'Gegevens van scanner'!$F$7:$G$250,2,0),0) -> 0 | E58: 40
A59: 10000050 | B59: LG G3 S | C59: 20 | D59: =IFERROR(VLOOKUP(A59,'Gegevens van scanner'!$F$7:$G$250,2,0),0) -> 0 | E59: 40
A60: 10000051 | B60: LG G4 leather met 64GB geheugenkaart | C60: 20 | D60: =IFERROR(VLOOKUP(A60,'Gegevens van scanner'!$F$7:$G$250,2,0),0) -> 0 | E60: 40
A61: 10000052 | B61: LG G4 leather met 64GB geheugenkaart | C61: 20 | D61: =IFERROR(VLOOKUP(A61,'Gegevens van scanner'!$F$7:$G$250,2,0),0) -> 0 | E61: 40
A62: 10000053 | B62: LG Leon 4G | C62: 20 | D62: =IFERROR(VLOOKUP(A62,'Gegevens van scanner'!$F$7:$G$250,2,0),0) -> 0 | E62: 40
A63: 10000054 | B63: LG Magna | C63: 20 | D63: =IFERROR(VLOOKUP(A63,'Gegevens van scanner'!$F$7:$G$250,2,0),0) -> 0 | E63: 40
A64: 10000055 | B64: LG Spirit 4G | C64: 20 | D64: =IFERROR(VLOOKUP(A64,'Gegevens van scanner'!$F$7:$G$250,2,0),0) -> 0 | E64: 40
A65: 10000056 | B65: Microsoft 435 Lumia | C65: 20 | D65: =IFERROR(VLOOKUP(A65,'Gegevens van scanner'!$F$7:$G$250,2,0),0) -> 0 | E65: 40
A66: 10000057 | B66: Microsoft 532 Lumia | C66: 20 | D66: =IFERROR(VLOOKUP(A66,'Gegevens van scanner'!$F$7:$G$250,2,0),0) -> 0 | E66: 40
A67: 10000058 | B67: Microsoft 535 Lumia | C67: 20 | D67: =IFERROR(VLOOKUP(A67,'Gegevens van scanner'!$F$7:$G$250,2,0),0) -> 0 | E67: 40
A68: 10000059 | B68: Microsoft 640 Lumia | C68: 20 | D68: =IFERROR(VLOOKUP(A68,'Gegevens van scanner'!$F$7:$G$250,2,0),0) -> 0 | E68: 40
A69: 10000060 | B69: Microsoft 640 Lumia XL | C69: 20 | D69: =IFERROR(VLOOKUP(A69,'Gegevens van scanner'!$F$7:$G$250,2,0),0) -> 0 | E69: 40
A70: 10000061 | B70: Microsoft 640 Lumia XL | C70: 20 | D70: =IFERROR(VLOOKUP(A70,'Gegevens van scanner'!$F$7:$G$250,2,0),0) -> 0 | E70: 40
A71: 10000062 | B71: Nokia 735 Lumia | C71: 20 | D71: =IFERROR(VLOOKUP(A71,'Gegevens van scanner'!$F$7:$G$250,2,0),0) -> 0 | E71: 40
A72: 10000063 | B72: Nokia 830 Lumia | C72: 20 | D72: =IFERROR(VLOOKUP(A72,'Gegevens van scanner'!$F$7:$G$250,2,0),0) -> 0 | E72: 40
A73: 10000064 | B73: Nokia 930 Lumia | C73: 20 | D73: =IFERROR(VLOOKUP(A73,'Gegevens van scanner'!$F$7:$G$250,2,0),0) -> 0 | E73: 40
A74: 10000065 | B74: Nokia 930 Lumia | C74: 20 | D74: =IFERROR(VLOOKUP(A74,'Gegevens van scanner'!$F$7:$G$250,2,0),0) -> 0 | E74: 40
A75: =A74+1 -> 10000066 | B75: Motorola New Moto E | C75: 20 | D75: =IFERROR(VLOOKUP(A75,'Gegevens van scanner'!$F$7:$G$250,2,0),0) -> 0 | E75: 40
A76: 10000067 | B76: Motorola New Moto G | C76: 20 | D76: =IFERROR(VLOOKUP(A76,'Gegevens van scanner'!$F$7:$G$250,2,0),0) -> 0 | E76: 40
A77: 10000068 | B77: Motorola New Moto G 4G | C77: 20 | D77: =IFERROR(VLOOKUP(A77,'Gegevens van scanner'!$F$7:$G$250,2,0),0) -> 0 | E77: 40
A78: 10000069 | B78: Motorola New Moto G 4G | C78: 20 | D78: =IFERROR(VLOOKUP(A78,'Gegevens van scanner'!$F$7:$G$250,2,0),0) -> 0 | E78: 40
A79: 10000070 | B79: Samsung Galaxy A3 | C79: 20 | D79: =IFERROR(VLOOKUP(A79,'Gegevens van scanner'!$F$7:$G$250,2,0),0) -> 0 | E79: 40
A80: 10000071 | B80: Samsung Galaxy A3 | C80: 20 | D80: =IFERROR(VLOOKUP(A80,'Gegevens van scanner'!$F$7:$G$250,2,0),0) -> 0 | E80: 40
A81: 10000072 | B81: Samsung Galaxy A5 | C81: 20 | D81: =IFERROR(VLOOKUP(A81,'Gegevens van scanner'!$F$7:$G$250,2,0),0) -> 0 | E81: 40
A82: 10000073 | B82: Samsung Galaxy A5 | C82: 20 | D82: =IFERROR(VLOOKUP(A82,'Gegevens van scanner'!$F$7:$G$250,2,0),0) -> 0 | E82: 40
A83: 10000074 | B83: Samsung Galaxy A7 | C83: 20 | D83: =IFERROR(VLOOKUP(A83,'Gegevens van scanner'!$F$7:$G$250,2,0),0) -> 0 | E83: 40
A84: 10000075 | B84: Samsung Galaxy A7 | C84: 20 | D84: =IFERROR(VLOOKUP(A84,'Gegevens van scanner'!$F$7:$G$250,2,0),0) -> 0 | E84: 40
A85: 10000076 | B85: Samsung Galaxy Core Prime | C85: 20 | D85: =IFERROR(VLOOKUP(A85,'Gegevens van scanner'!$F$7:$G$250,2,0),0) -> 0 | E85: 40
A86: 10000077 | D86: =IFERROR(VLOOKUP(A86,'Gegevens van scanner'!$F$7:$G$250,2,0),0) -> 0
A87: 10000078 | D87: =IFERROR(VLOOKUP(A87,'Gegevens van scanner'!$F$7:$G$250,2,0),0) -> 0
A88: 10000079 | D88: =IFERROR(VLOOKUP(A88,'Gegevens van scanner'!$F$7:$G$250,2,0),0) -> 0
A89: 10000080 | D89: =IFERROR(VLOOKUP(A89,'Gegevens van scanner'!$F$7:$G$250,2,0),0) -> 0
A90: 10000081 | D90: =IFERROR(VLOOKUP(A90,'Gegevens van scanner'!$F$7:$G$250,2,0),0) -> 0
A91: 10000082 | D91: =IFERROR(VLOOKUP(A91,'Gegevens van scanner'!$F$7:$G$250,2,0),0) -> 0
A92: 10000083 | D92: =IFERROR(VLOOKUP(A92,'Gegevens van scanner'!$F$7:$G$250,2,0),0) -> 0
A93: 10000084 | D93: =IFERROR(VLOOKUP(A93,'Gegevens van scanner'!$F$7:$G$250,2,0),0) -> 0
A94: 10000085 | D94: =IFERROR(VLOOKUP(A94,'Gegevens van scanner'!$F$7:$G$250,2,0),0) -> 0
A95: 10000086 | D95: =IFERROR(VLOOKUP(A95,'Gegevens van scanner'!$F$7:$G$250,2,0),0) -> 0
A96: 10000087 | D96: =IFERROR(VLOOKUP(A96,'Gegevens van scanner'!$F$7:$G$250,2,0),0) -> 0
A97: 10000088 | D97: =IFERROR(VLOOKUP(A97,'Gegevens van scanner'!$F$7:$G$250,2,0),0) -> 0
A98: 10000089 | D98: =IFERROR(VLOOKUP(A98,'Gegevens van scanner'!$F$7:$G$250,2,0),0) -> 0
A99: 10000090 | D99: =IFERROR(VLOOKUP(A99,'Gegevens van scanner'!$F$7:$G$250,2,0),0) -> 0
A100: 10000091 | D100: =IFERROR(VLOOKUP(A100,'Gegevens van scanner'!$F$7:$G$250,2,0),0) -> 0
A101: 10000092 | D101: =IFERROR(VLOOKUP(A101,'Gegevens van scanner'!$F$7:$G$250,2,0),0) -> 0
A102: 10000093 | D102: =IFERROR(VLOOKUP(A102,'Gegevens van scanner'!$F$7:$G$250,2,0),0) -> 0
A103: 10000094 | D103: =IFERROR(VLOOKUP(A103,'Gegevens van scanner'!$F$7:$G$250,2,0),0) -> 0
A104: 10000095 | D104: =IFERROR(VLOOKUP(A104,'Gegevens van scanner'!$F$7:$G$250,2,0),0) -> 0
A105: 10000096 | D105: =IFERROR(VLOOKUP(A105,'Gegevens van scanner'!$F$7:$G$250,2,0),0) -> 0
A106: 10000097 | D106: =IFERROR(VLOOKUP(A106,'Gegevens van scanner'!$F$7:$G$250,2,0),0) -> 0
A107: 10000098 | D107: =IFERROR(VLOOKUP(A107,'Gegevens van scanner'!$F$7:$G$250,2,0),0) -> 0
A108: 10000099 | D108: =IFERROR(VLOOKUP(A108,'Gegevens van scanner'!$F$7:$G$250,2,0),0) -> 0
A109: 10000100 | D109: =IFERROR(VLOOKUP(A109,'Gegevens van scanner'!$F$7:$G$250,2,0),0) -> 0
A110: 10000101 | D110: =IFERROR(VLOOKUP(A110,'Gegevens van scanner'!$F$7:$G$250,2,0),0) -> 0
A111: 10000102 | D111: =IFERROR(VLOOKUP(A111,'Gegevens van scanner'!$F$7:$G$250,2,0),0) -> 0
A112: 10000103 | D112: =IFERROR(VLOOKUP(A112,'Gegevens van scanner'!$F$7:$G$250,2,0),0) -> 0
A113: 10000104 | D113: =IFERROR(VLOOKUP(A113,'Gegevens van scanner'!$F$7:$G$250,2,0),0) -> 0
A114: 10000105 | D114: =IFERROR(VLOOKUP(A114,'Gegevens van scanner'!$F$7:$G$250,2,0),0) -> 0
A115: 10000106 | D115: =IFERROR(VLOOKUP(A115,'Gegevens van scanner'!$F$7:$G$250,2,0),0) -> 0
A116: 10000107 | D116: =IFERROR(VLOOKUP(A116,'Gegevens van scanner'!$F$7:$G$250,2,0),0) -> 0
A117: 10000108 | D117: =IFERROR(VLOOKUP(A117,'Gegevens van scanner'!$F$7:$G$250,2,0),0) -> 0
A118: 10000109 | D118: =IFERROR(VLOOKUP(A118,'Gegevens van scanner'!$F$7:$G$250,2,0),0) -> 0
A119: 10000110 | D119: =IFERROR(VLOOKUP(A119,'Gegevens van scanner'!$F$7:$G$250,2,0),0) -> 0
A120: 10000111 | D120: =IFERROR(VLOOKUP(A120,'Gegevens van scanner'!$F$7:$G$250,2,0),0) -> 0
A121: 10000112 | D121: =IFERROR(VLOOKUP(A121,'Gegevens van scanner'!$F$7:$G$250,2,0),0) -> 0
A122: 10000113 | D122: =IFERROR(VLOOKUP(A122,'Gegevens van scanner'!$F$7:$G$250,2,0),0) -> 0
A123: 10000114 | D123: =IFERROR(VLOOKUP(A123,'Gegevens van scanner'!$F$7:$G$250,2,0),0) -> 0
A124: 10000115 | D124: =IFERROR(VLOOKUP(A124,'Gegevens van scanner'!$F$7:$G$250,2,0),0) -> 0
A125: 10000116 | D125: =IFERROR(VLOOKUP(A125,'Gegevens van scanner'!$F$7:$G$250,2,0),0) -> 0
A126: 10000117 | D126: =IFERROR(VLOOKUP(A126,'Gegevens van scanner'!$F$7:$G$250,2,0),0) -> 0
A127: 10000118 | D127: =IFERROR(VLOOKUP(A127,'Gegevens van scanner'!$F$7:$G$250,2,0),0) -> 0
A128: 10000119 | D128: =IFERROR(VLOOKUP(A128,'Gegevens van scanner'!$F$7:$G$250,2,0),0) -> 0
A129: 10000120 | D129: =IFERROR(VLOOKUP(A129,'Gegevens van scanner'!$F$7:$G$250,2,0),0) -> 0
A130: 10000121 | D130: =IFERROR(VLOOKUP(A130,'Gegevens van scanner'!$F$7:$G$250,2,0),0) -> 0
A131: 10000122 | D131: =IFERROR(VLOOKUP(A131,'Gegevens van scanner'!$F$7:$G$250,2,0),0) -> 0
A132: 10000123 | D132: =IFERROR(VLOOKUP(A132,'Gegevens van scanner'!$F$7:$G$250,2,0),0) -> 0
A133: 10000124 | D133: =IFERROR(VLOOKUP(A133,'Gegevens van scanner'!$F$7:$G$250,2,0),0) -> 0
A134: 10000125 | D134: =IFERROR(VLOOKUP(A134,'Gegevens van scanner'!$F$7:$G$250,2,0),0) -> 0
A135: 10000126 | D135: =IFERROR(VLOOKUP(A135,'Gegevens van scanner'!$F$7:$G$250,2,0),0) -> 0
A136: 10000127 | D136: =IFERROR(VLOOKUP(A136,'Gegevens van scanner'!$F$7:$G$250,2,0),0) -> 0
A137: 10000128 | D137: =IFERROR(VLOOKUP(A137,'Gegevens van scanner'!$F$7:$G$250,2,0),0) -> 0
A138: 10000129 | D138: =IFERROR(VLOOKUP(A138,'Gegevens van scanner'!$F$7:$G$250,2,0),0) -> 0
A139: =A138+1 -> 10000130 | D139: =IFERROR(VLOOKUP(A139,'Gegevens van scanner'!$F$7:$G$250,2,0),0) -> 0
A140: 10000131 | D140: =IFERROR(VLOOKUP(A140,'Gegevens van scanner'!$F$7:$G$250,2,0),0) -> 0
A141: 10000132 | D141: =IFERROR(VLOOKUP(A141,'Gegevens van scanner'!$F$7:$G$250,2,0),0) -> 0
A142: 10000133 | D142: =IFERROR(VLOOKUP(A142,'Gegevens van scanner'!$F$7:$G$250,2,0),0) -> 0
A143: 10000134 | D143: =IFERROR(VLOOKUP(A143,'Gegevens van scanner'!$F$7:$G$250,2,0),0) -> 0
A144: 10000135 | D144: =IFERROR(VLOOKUP(A144,'Gegevens van scanner'!$F$7:$G$250,2,0),0) -> 0
A145: 10000136 | D145: =IFERROR(VLOOKUP(A145,'Gegevens van scanner'!$F$7:$G$250,2,0),0) -> 0
A146: 10000137 | D146: =IFERROR(VLOOKUP(A146,'Gegevens van scanner'!$F$7:$G$250,2,0),0) -> 0
A147: 10000138 | D147: =IFERROR(VLOOKUP(A147,'Gegevens van scanner'!$F$7:$G$250,2,0),0) -> 0
A148: 10000139 | D148: =IFERROR(VLOOKUP(A148,'Gegevens van scanner'!$F$7:$G$250,2,0),0) -> 0
A149: 10000140 | D149: =IFERROR(VLOOKUP(A149,'Gegevens van scanner'!$F$7:$G$250,2,0),0) -> 0
A150: 10000141 | D150: =IFERROR(VLOOKUP(A150,'Gegevens van scanner'!$F$7:$G$250,2,0),0) -> 0
A151: 10000142 | D151: =IFERROR(VLOOKUP(A151,'Gegevens van scanner'!$F$7:$G$250,2,0),0) -> 0
A152: 10000143 | D152: =IFERROR(VLOOKUP(A152,'Gegevens van scanner'!$F$7:$G$250,2,0),0) -> 0
A153: 10000144 | D153: =IFERROR(VLOOKUP(A153,'Gegevens van scanner'!$F$7:$G$250,2,0),0) -> 0
A154: 10000145 | D154: =IFERROR(VLOOKUP(A154,'Gegevens van scanner'!$F$7:$G$250,2,0),0) -> 0
A155: 10000146 | D155: =IFERROR(VLOOKUP(A155,'Gegevens van scanner'!$F$7:$G$250,2,0),0) -> 0
A156: 10000147 | D156: =IFERROR(VLOOKUP(A156,'Gegevens van scanner'!$F$7:$G$250,2,0),0) -> 0
A157: 10000148 | D157: =IFERROR(VLOOKUP(A157,'Gegevens van scanner'!$F$7:$G$250,2,0),0) -> 0
A158: 10000149 | D158: =IFERROR(VLOOKUP(A158,'Gegevens van scanner'!$F$7:$G$250,2,0),0) -> 0
A159: 10000150 | D159: =IFERROR(VLOOKUP(A159,'Gegevens van scanner'!$F$7:$G$250,2,0),0) -> 0
A160: 10000151 | D160: =IFERROR(VLOOKUP(A160,'Gegevens van scanner'!$F$7:$G$250,2,0),0) -> 0
A161: 10000152 | D161: =IFERROR(VLOOKUP(A161,'Gegevens van scanner'!$F$7:$G$250,2,0),0) -> 0
A162: 10000153 | D162: =IFERROR(VLOOKUP(A162,'Gegevens van scanner'!$F$7:$G$250,2,0),0) -> 0
A163: 10000154 | D163: =IFERROR(VLOOKUP(A163,'Gegevens van scanner'!$F$7:$G$250,2,0),0) -> 0
A164: 10000155 | D164: =IFERROR(VLOOKUP(A164,'Gegevens van scanner'!$F$7:$G$250,2,0),0) -> 0
A165: 10000156 | D165: =IFERROR(VLOOKUP(A165,'Gegevens van scanner'!$F$7:$G$250,2,0),0) -> 0
A166: 10000157 | D166: =IFERROR(VLOOKUP(A166,'Gegevens van scanner'!$F$7:$G$250,2,0),0) -> 0
A167: 10000158 | D167: =IFERROR(VLOOKUP(A167,'Gegevens van scanner'!$F$7:$G$250,2,0),0) -> 0
A168: 10000159 | D168: =IFERROR(VLOOKUP(A168,'Gegevens van scanner'!$F$7:$G$250,2,0),0) -> 0
A169: 10000160 | D169: =IFERROR(VLOOKUP(A169,'Gegevens van scanner'!$F$7:$G$250,2,0),0) -> 0
A170: 10000161 | D170: =IFERROR(VLOOKUP(A170,'Gegevens van scanner'!$F$7:$G$250,2,0),0) -> 0
A171: 10000162 | D171: =IFERROR(VLOOKUP(A171,'Gegevens van scanner'!$F$7:$G$250,2,0),0) -> 0
A172: 10000163 | D172: =IFERROR(VLOOKUP(A172,'Gegevens van scanner'!$F$7:$G$250,2,0),0) -> 0
A173: 10000164 | D173: =IFERROR(VLOOKUP(A173,'Gegevens van scanner'!$F$7:$G$250,2,0),0) -> 0
A174: 10000165 | D174: =IFERROR(VLOOKUP(A174,'Gegevens van scanner'!$F$7:$G$250,2,0),0) -> 0
A175: 10000166 | D175: =IFERROR(VLOOKUP(A175,'Gegevens van scanner'!$F$7:$G$250,2,0),0) -> 0
A176: 10000167 | D176: =IFERROR(VLOOKUP(A176,'Gegevens van scanner'!$F$7:$G$250,2,0),0) -> 0
A177: 10000168 | D177: =IFERROR(VLOOKUP(A177,'Gegevens van scanner'!$F$7:$G$250,2,0),0) -> 0
A178: 10000169 | D178: =IFERROR(VLOOKUP(A178,'Gegevens van scanner'!$F$7:$G$250,2,0),0) -> 0
A179: 10000170 | D179: =IFERROR(VLOOKUP(A179,'Gegevens van scanner'!$F$7:$G$250,2,0),0) -> 0
A180: 10000171 | D180: =IFERROR(VLOOKUP(A180,'Gegevens van scanner'!$F$7:$G$250,2,0),0) -> 0
A181: 10000172 | D181: =IFERROR(VLOOKUP(A181,'Gegevens van scanner'!$F$7:$G$250,2,0),0) -> 0
A182: 10000173 | D182: =IFERROR(VLOOKUP(A182,'Gegevens van scanner'!$F$7:$G$250,2,0),0) -> 0
A183: 10000174 | D183: =IFERROR(VLOOKUP(A183,'Gegevens van scanner'!$F$7:$G$250,2,0),0) -> 0
A184: 10000175 | D184: =IFERROR(VLOOKUP(A184,'Gegevens van scanner'!$F$7:$G$250,2,0),0) -> 0
A185: 10000176 | D185: =IFERROR(VLOOKUP(A185,'Gegevens van scanner'!$F$7:$G$250,2,0),0) -> 0
A186: 10000177 | D186: =IFERROR(VLOOKUP(A186,'Gegevens van scanner'!$F$7:$G$250,2,0),0) -> 0
A187: 10000178 | D187: =IFERROR(VLOOKUP(A187,'Gegevens van scanner'!$F$7:$G$250,2,0),0) -> 0
A188: 10000179 | D188: =IFERROR(VLOOKUP(A188,'Gegevens van scanner'!$F$7:$G$250,2,0),0) -> 0
A189: 10000180 | D189: =IFERROR(VLOOKUP(A189,'Gegevens van scanner'!$F$7:$G$250,2,0),0) -> 0
A190: 10000181 | D190: =IFERROR(VLOOKUP(A190,'Gegevens van scanner'!$F$7:$G$250,2,0),0) -> 0
A191: 10000182 | D191: =IFERROR(VLOOKUP(A191,'Gegevens van scanner'!$F$7:$G$250,2,0),0) -> 0
A192: 10000183 | D192: =IFERROR(VLOOKUP(A192,'Gegevens van scanner'!$F$7:$G$250,2,0),0) -> 0
A193: 10000184 | D193: =IFERROR(VLOOKUP(A193,'Gegevens van scanner'!$F$7:$G$250,2,0),0) -> 0
A194: 10000185 | D194: =IFERROR(VLOOKUP(A194,'Gegevens van scanner'!$F$7:$G$250,2,0),0) -> 0
A195: 10000186 | D195: =IFERROR(VLOOKUP(A195,'Gegevens van scanner'!$F$7:$G$250,2,0),0) -> 0
A196: 10000187 | D196: =IFERROR(VLOOKUP(A196,'Gegevens van scanner'!$F$7:$G$250,2,0),0) -> 0
A197: 10000188 | D197: =IFERROR(VLOOKUP(A197,'Gegevens van scanner'!$F$7:$G$250,2,0),0) -> 0
A198: 10000189 | D198: =IFERROR(VLOOKUP(A198,'Gegevens van scanner'!$F$7:$G$250,2,0),0) -> 0
A199: 10000190 | D199: =IFERROR(VLOOKUP(A199,'Gegevens van scanner'!$F$7:$G$250,2,0),0) -> 0
A200: 10000191 | D200: =IFERROR(VLOOKUP(A200,'Gegevens van scanner'!$F$7:$G$250,2,0),0) -> 0
A201: 10000192 | D201: =IFERROR(VLOOKUP(A201,'Gegevens van scanner'!$F$7:$G$250,2,0),0) -> 0
A202: 10000193 | D202: =IFERROR(VLOOKUP(A202,'Gegevens van scanner'!$F$7:$G$250,2,0),0) -> 0
A203: =A202+1 -> 10000194 | D203: =IFERROR(VLOOKUP(A203,'Gegevens van scanner'!$F$7:$G$250,2,0),0) -> 0
A204: 10000195 | D204: =IFERROR(VLOOKUP(A204,'Gegevens van scanner'!$F$7:$G$250,2,0),0) -> 0
A205: 10000196 | D205: =IFERROR(VLOOKUP(A205,'Gegevens van scanner'!$F$7:$G$250,2,0),0) -> 0
A206: 10000197 | D206: =IFERROR(VLOOKUP(A206,'Gegevens van scanner'!$F$7:$G$250,2,0),0) -> 0
A207: 10000198 | D207: =IFERROR(VLOOKUP(A207,'Gegevens van scanner'!$F$7:$G$250,2,0),0) -> 0
A208: 10000199 | D208: =IFERROR(VLOOKUP(A208,'Gegevens van scanner'!$F$7:$G$250,2,0),0) -> 0
... 4292 more rows

Sheet BARCODE GENERATOR
A1: =VLOOKUP(M4,DATABASE!A:B,2,FALSE) -> Apple iPhone 4S 8GB | C1: =VLOOKUP(C3,DATABASE!A:B,2,FALSE) -> Apple iPhone 6 16GB | E1: =VLOOKUP(E3,DATABASE!A:B,2,FALSE) -> Apple iPhone 6 Plus 64GB
A2: =IF(A3>0,"*"&A3&"*","") -> *10000001* | C2: =IF(C3>0,"*"&C3&"*","") -> *10000009* | E2: =IF(E3>0,"*"&E3&"*","") -> *10000017* | I2: (deze pagina niet uitprinten)
A3: =M4 -> 10000001 | C3: =A31+1 -> 10000009 | E3: =C31+1 -> 10000017
L4: GEGEVENS OPHALEN VANAF SYSTEEM NUMMER: | M4: 10000001
A5: =VLOOKUP(A7,DATABASE!A:B,2,FALSE) -> Apple iPhone 4S 8GB | C5: =VLOOKUP(C7,DATABASE!A:B,2,FALSE) -> Apple iPhone 6 16GB | E5: =VLOOKUP(E7,DATABASE!A:B,2,FALSE) -> Apple iPhone 6 Plus 64GB | M5: ="T/M "&M4+20 -> T/M 10000021
A6: =IF(A7>0,"*"&A7&"*","") -> *10000002* | C6: =IF(C7>0,"*"&C7&"*","") -> *10000010* | E6: =IF(E7>0,"*"&E7&"*","") -> *10000018*
A7: =A3+1 -> 10000002 | C7: =C3+1 -> 10000010 | E7: =E3+1 -> 10000018 | K7: bladbeveiliging opheffen: | L7: vb
A9: =VLOOKUP(A11,DATABASE!A:B,2,FALSE) -> Apple iPhone 5C 8GB | C9: =VLOOKUP(C11,DATABASE!A:B,2,FALSE) -> Apple iPhone 6 64GB | E9: =VLOOKUP(E11,DATABASE!A:B,2,FALSE) -> Apple iPhone 6 Plus 128GB
A10: =IF(A11>0,"*"&A11&"*","") -> *10000003* | C10: =IF(C11>0,"*"&C11&"*","") -> *10000011* | E10: =IF(E11>0,"*"&E11&"*","") -> *10000019*
A11: =A7+1 -> 10000003 | C11: =C7+1 -> 10000011 | E11: =E7+1 -> 10000019
A13: =VLOOKUP(A15,DATABASE!A:B,2,FALSE) -> Apple iPhone 5C 8GB | C13: =VLOOKUP(C15,DATABASE!A:B,2,FALSE) -> Apple iPhone 6 64GB | E13: =VLOOKUP(E15,DATABASE!A:B,2,FALSE) -> Apple iPhone 6 Plus 128GB
A14: =IF(A15>0,"*"&A15&"*","") -> *10000004* | C14: =IF(C15>0,"*"&C15&"*","") -> *10000012* | E14: =IF(E15>0,"*"&E15&"*","") -> *10000020*
A15: =A11+1 -> 10000004 | C15: =C11+1 -> 10000012 | E15: =E11+1 -> 10000020
A17: =VLOOKUP(A19,DATABASE!A:B,2,FALSE) -> Apple iPhone 5S 16GB | C17: =VLOOKUP(C19,DATABASE!A:B,2,FALSE) -> Apple iPhone 6 128GB | E17: =VLOOKUP(E19,DATABASE!A:B,2,FALSE) -> BlackBerry Classic
A18: =IF(A19>0,"*"&A19&"*","") -> *10000005* | C18: =IF(C19>0,"*"&C19&"*","") -> *10000013* | E18: =IF(E19>0,"*"&E19&"*","") -> *10000021*
A19: =A15+1 -> 10000005 | C19: =C15+1 -> 10000013 | E19: =E15+1 -> 10000021
A21: =VLOOKUP(A23,DATABASE!A:B,2,FALSE) -> Apple iPhone 5S 16GB | C21: =VLOOKUP(C23,DATABASE!A:B,2,FALSE) -> Apple iPhone 6 128GB | E21: =VLOOKUP(E23,DATABASE!A:B,2,FALSE) -> BlackBerry Classic
A22: =IF(A23>0,"*"&A23&"*","") -> *10000006* | C22: =IF(C23>0,"*"&C23&"*","") -> *10000014* | E22: =IF(E23>0,"*"&E23&"*","") -> *10000022*
A23: =A19+1 -> 10000006 | C23: =C19+1 -> 10000014 | E23: =E19+1 -> 10000022
A25: =VLOOKUP(A27,DATABASE!A:B,2,FALSE) -> Apple iPhone 5S 32GB | C25: =VLOOKUP(C27,DATABASE!A:B,2,FALSE) -> Apple iPhone 6 Plus 16GB | E25: =VLOOKUP(E27,DATABASE!A:B,2,FALSE) -> BlackBerry Leap
A26: =IF(A27>0,"*"&A27&"*","") -> *10000007* | C26: =IF(C27>0,"*"&C27&"*","") -> *10000015* | E26: =IF(E27>0,"*"&E27&"*","") -> *10000023*
A27: =A23+1 -> 10000007 | C27: =C23+1 -> 10000015 | E27: =E23+1 -> 10000023
A29: =VLOOKUP(A31,DATABASE!A:B,2,FALSE) -> Apple iPhone 5S 32GB | C29: =VLOOKUP(C31,DATABASE!A:B,2,FALSE) -> Apple iPhone 6 Plus 16GB | E29: =VLOOKUP(E31,DATABASE!A:B,2,FALSE) -> BlackBerry Leap
A30: =IF(A31>0,"*"&A31&"*","") -> *10000008* | C30: =IF(C31>0,"*"&C31&"*","") -> *10000016* | E30: =IF(E31>0,"*"&E31&"*","") -> *10000024*
A31: =A27+1 -> 10000008 | C31: =C27+1 -> 10000016 | E31: =E27+1 -> 10000024

Sheet SETUP
A5: SCANNER (APP)
A7: Stap .1 | C7: Download de APP: | F7: https://play.google.com/store/apps/details?id=com.longint.lomag.scanner&hl=nl
A8: Stap .2 | C8: Ga in de APP naar Settings (tandwiel) verander de instelling [Code only] naar [Code and amount].
A9: Stap .3 | C9: Maak een nieuwe lijst aan in de APP. Druk op Add file (+). Je ziet een klein venster voor de naam van je lijst. Verander dit niet! Druk op Confirm.
A10: Stap .4 | C10: Draai je telefoon 90 en scan de barcode, je hoort een piepje als je telefoon de barcode scant. Geef nu het aantal onderdelen op dat je meeneemt.
A11: Stap .5 | C11: Druk op [Scan nect] als u nog een ander onderdeel nodig heeft. Druk op [Save and exit] als je geen onderdelen meer nodig hebt.
A12: Stap .6 | C12: In de loop van de dag heb je een lijst met onderdelen gescand. Bekijk je lijst met [Browse files]. Oude lijsten zijn hier te verwijderen met X
A13: Stap .7 | C13: Aan het einde van de dag stuur je jou lijst door naar de computer, druk op [Send file]. Er komt een venster, druk op [Send to e-mail address]. Druk op [Send]. Zorg er nu voor dat jou telefoon het mailtje naar de computer stuurd.
A17: VOORRAAD BEHEER (PC)
A19: Stap .8 | C19: Op de PC heb je nodig: dit excel bestand, en een nieuwe lettertype. Download de lettertype Code 39 Font TrueType: | N19: http://www.barcodesinc.com/free-barcode-font/
A20: Stap .9 | C20: Controleer of de lettertype door windows is opgenomen. Start dit excel bestand opnieuw op. De tekst "barcode" hiernaast is nu in een barcode verandert: | R20: barcode | T20: Is dit geen barcode? Start je PC opnieuw op.
A21: Stap .10 | C21: Download de bijlagen van het mailtje van stap 7. open de bijlagen. Kopieer alleen de cellen met tekst. Plak de gegevens in dit bestand op het tabblad [Gegevens van scanner] in cell A3
A22: Stap .11 | C22: In de tweede kolom komt meteen de melding VERNIEUWEN (in het rood). Klik met rechtermuisknop onder de cell met de melding. Klik op vernieuwen. De waarschuwing verdwijnt nu.
C24: De gegevens van je smartphone (scanner) zijn nu opgenomen en gefilterd in excel. Om de nieuwe aantallen door te voeren moet ik nog een oplossing vinden :P
